bitfinex/quotes_ETHUSD_20251130
["timestamp","ask_amount","ask_price","bid_price","bid_amount"]
[1764508973135,0.1,3043.4,3042.7,0.72559411]
[1764508973352,0.4667,3043.3,3042.7,0.72559411]
[1764508973555,0.212,3043.2,3042.7,0.72559411]
[1764508974019,0.6787,3043.2,3042.7,0.72559411]
[1764508974220,0.6787,3043.2,3042.9,0.72559411]
[1764508974431,0.4737,3043.0,3042.9,0.72559411]
[1764508974832,0.6787,3043.2,3042.7,0.03286554]
[1764508974833,0.212,3043.2,3042.7,0.03286554]
[1764508975028,0.212,3043.2,3042.6,0.48726662]
[1764508975855,0.212,3043.2,3042.6,1.21286073]
[1764508976232,0.002,3043.4,3043.1,0.6722]
[1764508976436,0.002,3043.4,3043.3,0.4919]
[1764508976832,0.002,3043.4,3043.3,0.97915906]
[1764508977339,0.002,3043.4,3043.3,0.52475906]
[1764508978455,0.002,3043.4,3043.3,4.53625991]
[1764508978633,0.002,3043.4,3043.3,4.50340085]
[1764508982556,0.002,3043.4,3043.3,4.01150085]
[1764508983464,0.4757,3043.4,3043.2,3.285968]
[1764508984153,0.4757,3043.4,3043.1,0.72559411]
[1764508984759,0.4757,3043.4,3043.1,4.01163101]
[1764508984936,0.9424,3043.4,3043.1,4.01163101]
[1764508985263,0.4757,3043.4,3043.1,4.01163101]
[1764508985450,0.002,3043.4,3043.1,4.17503101]
[1764508985761,0.002,3043.4,3043.3,0.4919]
[1764508986059,0.002,3043.4,3043.3,1.64548337]
[1764508986262,0.002,3043.4,3043.3,0.4919]
[1764508986559,0.4757,3043.4,3043.2,1.15358337]
[1764508986763,0.4757,3043.4,3043.1,7.29775371]
[1764508986764,0.002,3043.4,3043.3,0.86746004]
[1764508986959,0.002,3043.4,3043.3,4.15336678]
[1764508987165,0.002,3043.4,3043.3,5.13252584]
[1764508987351,0.002,3043.4,3043.3,4.15336678]
[1764508988064,0.4757,3043.4,3043.2,0.86746004]
[1764508988262,0.0882,3043.3,3042.8,0.86746004]
[1764508988451,0.4687,3043.4,3042.0,2.97473655]
[1764508988452,0.4556,3042.9,3042.2,0.86746004]
[1764508988654,0.287,3042.7,3042.2,0.86746004]
[1764508988830,0.4737,3042.3,3042.2,0.86746004]
[1764508989160,0.4737,3042.3,3042.1,0.86746004]
[1764508989161,0.6857,3042.3,3042.1,0.86746004]
[1764508989543,0.6857,3042.3,3042.0,4.15576553]
[1764508989741,0.6857,3042.3,3042.0,0.86846004]
[1764508989964,0.4737,3042.1,3042.0,0.001]
[1764508990663,0.212,3042.3,3042.0,7.52192194]
[1764508990866,0.1827,3042.9,3042.3,6.57397362]
[1764508991036,0.212,3042.8,3042.4,0.03286878]
[1764508991467,0.212,3042.8,3042.4,0.48726878]
[1764508991962,0.212,3042.8,3042.4,1.21286289]
[1764508992478,0.212,3042.8,3042.7,0.4919]
[1764508992768,0.212,3042.8,3042.5,0.4544]
[1764508992769,0.6857,3042.8,3042.6,0.03286662]
[1764508992936,0.4698,3042.5,3042.2,0.86746004]
[1764508993136,0.0883,3042.3,3042.1,0.72559411]
[1764508993535,0.4698,3042.2,3042.1,0.72559411]
[1764508993740,0.6818,3042.2,3042.0,0.001]
[1764508993945,0.0921,3042.1,3042.0,0.001]
[1764508994273,0.5588,3042.1,3042.0,0.001]
[1764508994463,0.212,3042.2,3042.0,3.78020339]
[1764508994669,0.4737,3042.1,3042.0,0.001]
[1764508994868,0.212,3042.2,3042.0,0.001]
[1764508995369,0.212,3042.2,3042.0,0.0338731]
[1764508995575,0.212,3042.3,3042.0,0.0338731]
[1764508996662,0.212,3042.3,3042.0,0.75946721]
[1764508997191,0.212,3042.3,3042.0,0.0338731]
[1764508997485,0.212,3042.3,3042.0,6.6084829]
[1764508997853,3.75326475,3042.7,3042.0,3.32117193]
[1764508998082,0.212,3042.6,3042.0,3.32117193]
[1764508998377,0.6787,3042.6,3042.0,3.32117193]
[1764508998770,0.4667,3042.5,3042.0,3.32117193]
[1764509001254,0.212,3042.6,3042.1,0.92279411]
[1764509001466,0.4667,3042.9,3042.2,0.48727094]
[1764509001752,0.212,3042.8,3042.4,0.72559411]
[1764509001954,0.1827,3043.1,3042.5,0.0328677]
[1764509002169,1.13257171,3043.0,3042.5,0.0328677]
[1764509002364,0.7857,3043.0,3042.5,0.0328677]
[1764509002570,0.7857,3043.0,3042.4,0.75846289]
[1764509002964,0.312,3043.0,3042.4,0.75846289]
[1764509003170,0.212,3043.0,3042.4,1.25276289]
[1764509003357,0.212,3043.0,3042.4,0.72559411]
[1764509003557,0.6633,3043.0,3042.6,0.72559411]
[1764509003758,0.6633,3043.0,3042.5,0.72559411]
[1764509003961,0.212,3043.0,3042.5,0.72559411]
[1764509004589,0.212,3043.0,3042.5,1.21989411]
[1764509005087,0.212,3043.0,3042.5,1.25276181]
[1764509005662,0.212,3043.0,3042.7,0.72559411]
[1764509005857,0.212,3043.2,3042.9,0.4659]
[1764509006064,0.212,3043.2,3042.7,0.72559411]
[1764509006065,0.4763,3043.0,3042.7,0.72559411]
[1764509006764,0.213,3043.4,3042.9,0.4659]
[1764509006985,0.213,3043.4,3043.1,0.4659]
[1764509007177,0.213,3043.4,3043.3,0.4659]
[1764509007668,0.213,3043.4,3043.3,4.01150085]
[1764509008275,0.213,3043.4,3043.3,4.47740085]
[1764509008478,0.002,3043.4,3043.3,4.47740085]
[1764509008665,0.002,3043.4,3043.3,4.97170085]
[1764509009090,0.002,3043.4,3043.3,4.47740085]
[1764509009309,3.28483591,3044.3,3043.3,4.47740085]
[1764509009310,0.003,3045.1,3043.4,0.002]
[1764509009597,0.003,3047.3,3045.2,0.003]
[1764509009797,0.003,3047.3,3046.5,0.006]
[1764509009963,0.003,3047.3,3046.7,0.86746004]
[1764509010169,0.003,3047.3,3046.9,0.72559411]
[1764509010363,0.003,3047.3,3047.0,2.63105324]
[1764509010592,0.02,3047.4,3047.2,1.27296404]
[1764509010791,0.003,3048.4,3047.3,1.78500457]
[1764509010970,0.00501296,3049.0,3047.7,0.02]
[1764509011165,0.00501296,3049.0,3048.3,1.1432306]
[1764509011501,0.4513,3050.9,3048.5,1.1432306]
[1764509011685,0.634,3050.9,3048.8,0.72559411]
[1764509011886,0.1827,3050.9,3048.9,0.214]
[1764509012098,0.1827,3050.9,3048.8,0.72559411]
[1764509012297,0.1827,3049.9,3048.8,0.72559411]
[1764509012599,0.1827,3049.9,3048.9,0.214]
[1764509012801,0.1827,3049.9,3048.8,0.93959411]
[1764509012971,0.634,3049.9,3048.8,0.72559411]
[1764509013168,0.4513,3049.8,3048.8,0.72559411]
[1764509013407,0.1827,3049.9,3048.8,0.72559411]
[1764509013700,0.1827,3049.9,3047.7,3.28116284]
[1764509013701,0.659,3048.9,3047.7,3.28116284]
[1764509013915,0.003,3049.5,3047.9,0.405504]
[1764509014074,0.003,3049.5,3048.0,0.0016]
[1764509014275,0.003,3049.5,3048.2,0.405504]
[1764509014697,0.003,3049.5,3048.1,0.214]
[1764509014698,0.4543,3049.5,3048.1,0.214]
[1764509015499,0.003,3049.5,3048.1,0.214]
[1764509015681,0.003,3049.5,3048.4,0.405504]
[1764509016108,0.4543,3049.5,3048.4,0.405504]
[1764509016313,0.003,3049.5,3048.4,0.405504]
[1764509016613,0.003,3049.5,3048.5,0.214]
[1764509016812,0.003,3049.5,3048.4,0.619504]
[1764509017168,0.4543,3049.5,3048.4,0.619504]
[1764509017593,0.4543,3049.5,3048.8,0.72559411]
[1764509017802,0.4543,3049.5,3049.0,0.72559411]
[1764509018986,0.4543,3049.5,3048.8,4.00552321]
[1764509019560,0.16128495,3050.2,3049.0,3.734]
[1764509019689,0.16128495,3050.2,3049.3,0.72559411]
[1764509019889,0.16128495,3050.2,3049.4,0.405504]
[1764509020135,0.16128495,3050.2,3049.6,0.405504]
[1764509020347,0.16128495,3050.2,3049.3,0.72559411]
[1764509020622,0.16128495,3050.2,3049.4,0.619504]
[1764509020927,0.16128495,3050.2,3049.4,1.253504]
[1764509021425,0.16128495,3050.2,3049.4,1.039504]
[1764509021722,0.16128495,3050.2,3049.8,1.13109811]
[1764509021924,0.16128495,3050.2,3050.0,0.405504]
[1764509022435,0.16128495,3050.2,3050.1,1.039504]
[1764509022612,0.16128495,3050.2,3050.1,1.76509811]
[1764509023690,0.16128495,3050.2,3050.1,5.04367914]
[1764509024325,0.16128495,3050.2,3050.1,5.25767914]
[1764509025894,0.16128495,3050.2,3050.1,5.04367914]
[1764509026722,0.16128495,3050.2,3050.1,1.35959411]
[1764509027028,0.16128495,3050.2,3050.0,0.1827]
[1764509027240,0.61258495,3050.2,3050.1,0.03278581]
[1764509027428,1.08888495,3050.2,3050.1,0.03278581]
[1764509027629,1.08888495,3050.2,3049.7,0.4513]
[1764509027825,0.16128495,3050.2,3049.9,0.72559411]
[1764509028324,0.4763,3050.0,3049.1,0.213]
[1764509028632,0.659,3049.9,3049.3,0.9851327]
[1764509028841,0.659,3049.9,3049.4,0.03279333]
[1764509029006,0.659,3049.9,3049.3,0.9851327]
[1764509029007,0.4513,3049.8,3048.6,6.56038836]
[1764509029209,0.4513,3049.8,3048.9,0.659]
[1764509029612,0.5513,3049.8,3048.6,6.56038836]
[1764509029815,0.5513,3049.8,3048.8,6.559958]
[1764509029816,0.4513,3049.8,3048.8,6.559958]
[1764509030147,3.73022802,3049.8,3048.7,4.26532771]
[1764509030304,0.4912928,3049.7,3048.7,4.26534402]
[1764509030498,0.9425928,3049.7,3048.8,0.72559411]
[1764509031042,0.4513,3049.6,3048.9,0.03279871]
[1764509031204,0.634,3049.9,3048.9,0.03279871]
[1764509031400,0.1827,3049.9,3049.0,0.405504]
[1764509031599,0.1827,3049.9,3049.1,0.03279656]
[1764509031836,0.634,3049.9,3049.3,0.72559411]
[1764509032142,0.1827,3049.9,3049.4,0.03279333]
[1764509032505,0.4941,3049.8,3049.4,0.03279333]
[1764509033137,0.1827,3049.9,3049.4,0.03279333]
[1764509033333,0.1847,3049.9,3049.4,0.03279333]
[1764509033539,0.6788,3049.9,3049.4,0.03279333]
[1764509033737,0.4941,3049.8,3049.3,0.72559411]
[1764509033964,0.1847,3049.9,3049.5,0.72559411]
[1764509034170,0.1847,3049.9,3049.6,0.03279118]
[1764509034461,0.4941,3049.8,3049.5,0.72559411]
[1764509034830,0.1847,3049.9,3049.5,0.72559411]
[1764509035037,0.6788,3049.9,3049.5,0.72559411]
[1764509035428,0.4941,3049.8,3049.5,0.72559411]
[1764509035628,0.451,3049.6,3049.3,4.00500763]
[1764509035866,0.451,3049.3,3048.7,3.28008659]
[1764509036037,0.451,3049.3,3048.8,1.17039087]
[1764509036239,0.451,3049.3,3048.9,0.67629087]
[1764509036427,0.9451,3049.3,3048.9,0.67629087]
[1764509036627,0.4941,3049.8,3048.9,0.67629087]
[1764509036827,4.16878733,3049.8,3048.9,0.67629087]
[1764509037242,0.4941,3049.7,3049.0,1.81952147]
[1764509037536,0.4941,3049.7,3049.1,0.67629087]
[1764509037749,0.5941,3049.7,3049.2,0.67629087]
[1764509038081,0.5941,3049.7,3049.3,0.67629087]
[1764509038228,0.4941,3049.6,3049.4,1.81952147]
[1764509038558,0.4941,3049.6,3049.5,0.67629087]
[1764509038938,0.9451,3049.6,3049.5,0.67629087]
[1764509039352,0.1847,3049.9,3049.5,0.67629087]
[1764509039550,0.1847,3049.9,3049.8,1.71907646]
[1764509039551,0.3977,3049.9,3049.8,1.71907646]
[1764509039757,0.3977,3049.9,3049.8,2.39536733]
[1764509039926,0.8487,3049.9,3049.8,0.67629087]
[1764509040248,0.8487,3049.9,3049.8,2.39811173]
[1764509040455,4.12749602,3049.9,3049.8,2.39811173]
[1764509040732,0.9487,3049.9,3049.8,2.39811173]
[1764509040927,0.6357,3049.9,3049.8,0.67629087]
[1764509041343,1.0525,3049.9,3049.8,0.67629087]
[1764509042082,4.33129602,3049.9,3049.8,1.82413596]
[1764509042289,4.43129602,3049.9,3049.8,0.67629087]
[1764509042432,4.43129602,3049.9,3049.4,0.72559411]
[1764509042433,11.37386804,3049.9,3049.4,1.14784509]
[1764509042758,11.37386804,3049.9,3049.2,1.72182086]
[1764509042759,0.1,3049.6,3049.5,0.68905113]
[1764509042960,0.1,3049.2,3048.9,1.14784509]
[1764509043163,0.213,3049.1,3048.6,1.14784509]
[1764509043459,0.3741,3048.8,3048.6,1.14784509]
[1764509043635,0.5581,3048.7,3048.6,1.14784509]
[1764509044032,1.0498,3048.7,3048.5,1.14784509]
[1764509044395,1.0498,3048.7,3048.4,1.14784509]
[1764509044776,0.3722,3048.5,3048.4,1.14784509]
[1764509045067,0.5852,3048.5,3048.3,1.14784509]
[1764509045250,0.4941,3048.4,3048.3,1.14784509]
[1764509045451,0.213,3048.5,3048.3,1.14784509]
[1764509045837,0.451,3048.4,3048.3,1.14784509]
[1764509046272,0.8658,3048.4,3048.3,1.14784509]
[1764509046568,0.451,3048.4,3048.1,1.14884509]
[1764509046771,3.49330216,3048.5,3048.1,1.14884509]
[1764509046975,0.4722,3048.2,3048.1,0.001]
[1764509047339,0.9651,3048.2,3048.1,0.001]
[1764509047549,0.8651,3048.2,3047.8,0.001]
[1764509047748,0.5539,3047.9,3047.8,0.001]
[1764509047967,1.0467,3047.9,3047.8,0.001]
[1764509048169,1.2597,3047.9,3047.8,0.001]
[1764509048370,0.7669,3047.9,3047.8,0.001]
[1764509048645,0.6788,3048.7,3047.8,0.53221055]
[1764509048878,0.6788,3048.7,3048.4,0.001]
[1764509048879,0.213,3048.6,3048.4,0.001]
[1764509049044,0.7071,3048.6,3048.4,0.001]
[1764509049243,0.3692,3048.5,3048.4,0.001]
[1764509049460,0.962,3048.5,3048.4,0.001]
[1764509049739,0.862,3048.5,3048.4,0.001]
[1764509050385,0.213,3048.6,3048.4,0.001]
[1764509050876,0.3692,3048.5,3048.4,0.001]
[1764509051177,0.213,3048.6,3048.4,0.001]
[1764509051922,0.4941,3049.6,3048.5,0.9489]
[1764509052173,0.213,3049.5,3048.7,0.72559411]
[1764509052644,0.4941,3049.4,3048.4,0.001]
[1764509052847,0.1,3049.1,3048.4,0.03380409]
[1764509053153,0.213,3049.0,3048.4,0.001]
[1764509053482,0.213,3049.0,3048.4,0.03380409]
[1764509053692,0.213,3049.0,3048.4,0.72659411]
[1764509053905,0.002,3049.8,3048.9,0.4984]
[1764509054048,0.002,3049.8,3049.2,0.4984]
[1764509054448,0.002,3049.8,3049.3,0.638]
[1764509054789,0.002,3049.8,3049.1,0.91309411]
[1764509055298,0.4961,3049.8,3049.1,0.72559411]
[1764509055793,0.002,3049.8,3049.7,0.4984]
[1764509056106,0.002,3049.8,3049.7,4.95350516]
[1764509057485,0.002,3049.8,3049.7,5.35900916]
[1764509057890,0.002,3049.8,3049.7,5.66160516]
[1764509058261,0.16128495,3050.2,3049.9,0.405504]
[1764509058462,0.16128495,3050.2,3050.1,1.091404]
[1764509058665,0.16128495,3050.2,3050.1,0.6859]
[1764509058859,0.16128495,3050.2,3050.1,1.541904]
[1764509060090,0.1847,3052.1,3050.1,5.54607914]
[1764509060290,0.01,3052.4,3051.4,0.6859]
[1764509060673,0.5041,3052.4,3051.4,0.6859]
[1764509060875,0.01,3052.4,3051.4,1.6305]
[1764509061261,0.5041,3052.4,3051.4,1.18]
[1764509061459,0.1847,3051.9,3051.4,0.1572]
[1764509061679,0.1847,3051.9,3050.9,0.1875]
[1764509061886,0.4941,3051.7,3051.0,0.4505]
[1764509062267,0.4547,3051.4,3050.6,0.1875]
[1764509062470,0.4547,3051.4,3050.7,0.4941]
[1764509062970,0.4502,3051.7,3050.3,3.27828699]
[1764509063295,0.4532,3051.5,3050.6,0.98469618]
[1764509063497,0.47301695,3051.4,3050.1,3.46606942]
[1764509063672,0.4532,3051.5,3050.2,1.71047132]
[1764509063884,0.1,3051.1,3050.2,1.71047132]
[1764509064067,0.1,3051.1,3050.3,0.72559411]
[1764509064411,0.4502,3051.2,3050.3,0.72559411]
[1764509065297,0.4502,3051.2,3050.2,0.03278473]
[1764509065467,0.4502,3051.2,3050.2,0.75837884]
[1764509065668,0.4502,3051.2,3050.3,0.72559411]
[1764509066101,0.4502,3051.2,3050.4,0.03278258]
[1764509067166,0.4502,3051.1,3049.2,0.4689]
[1764509067381,0.4502,3051.1,3049.3,1.088404]
[1764509067580,0.5502,3051.1,3050.0,0.001]
[1764509067782,0.1,3051.0,3050.0,0.001]
[1764509068182,0.6418,3050.9,3050.0,0.001]
[1764509068577,0.4502,3050.8,3050.0,0.001]
[1764509069192,0.39195289,3050.7,3050.0,0.001]
[1764509069572,0.84215289,3050.7,3050.0,0.001]
[1764509069781,0.4502,3050.7,3050.0,0.001]
[1764509070518,3.28213023,3051.5,3050.0,0.001]
[1764509070519,0.005,3051.5,3050.6,0.6482]
[1764509070743,0.005,3051.5,3050.8,0.4581]
[1764509071398,0.005,3051.5,3050.9,0.03277721]
[1764509071599,0.4502,3051.4,3050.6,0.1901]
[1764509071900,0.005,3051.5,3050.7,0.50167936]
[1764509072105,0.005,3051.5,3050.7,0.4689]
[1764509072310,0.005,3051.5,3050.9,0.72559411]
[1764509072529,0.005,3051.5,3050.9,0.03277721]
[1764509073027,0.005,3051.5,3050.9,0.4689]
[1764509073726,0.005,3051.5,3051.0,0.03277613]
[1764509074473,0.005,3051.5,3050.6,0.1901]
[1764509074474,0.3969,3051.1,3050.3,0.1901]
[1764509074602,0.3969,3051.1,3050.4,0.75837669]
[1764509074795,0.4502,3051.4,3050.4,1.22727669]
[1764509075004,0.4502,3051.4,3050.4,0.03278258]
[1764509075433,0.82341695,3051.4,3050.4,0.72559411]
[1764509075598,0.4502,3051.4,3050.4,0.72559411]
[1764509076340,0.4502,3051.4,3050.5,6.55630224]
[1764509076504,0.4502,3051.4,3050.2,0.1901]
[1764509076505,0.03278273,3051.3,3050.2,0.1901]
[1764509077002,0.4502,3051.2,3050.3,0.03278366]
[1764509077405,0.03778273,3051.5,3050.3,0.03278366]
[1764509077406,0.214,3051.4,3050.3,0.50168366]
[1764509077601,0.4502,3051.4,3050.3,0.4689]
[1764509077802,0.4502,3051.4,3050.4,0.03278258]
[1764509078002,0.4502,3051.4,3050.4,0.50168258]
[1764509078205,0.005,3051.5,3050.4,0.50168258]
[1764509078405,0.005,3051.5,3050.5,3.27815112]
[1764509078630,0.4552,3051.5,3050.6,0.75837454]
[1764509078838,0.03278273,3051.4,3050.6,0.72559411]
[1764509079040,0.03278273,3051.4,3050.5,0.72559411]
[1764509079334,0.85948588,3051.4,3050.6,0.03278043]
[1764509079735,0.4502,3051.4,3050.6,0.03278043]
[1764509080357,0.03778273,3051.5,3050.6,0.03278043]
[1764509080510,0.005,3051.5,3050.8,0.72559411]
[1764509080709,0.005,3051.5,3050.5,0.4689]
[1764509080948,0.4552,3051.5,3050.6,0.75837454]
[1764509081239,0.48798273,3051.5,3050.6,0.03278043]
[1764509081406,0.4552,3051.5,3050.6,0.03278043]
[1764509082040,0.005,3051.5,3050.6,0.03278043]
[1764509082340,0.03278273,3051.4,3050.5,0.72559411]
[1764509082543,0.4502,3051.3,3050.5,0.72559411]
[1764509083708,0.4525,3050.6,3050.0,4.00524726]
[1764509083927,0.03278273,3051.2,3050.1,0.1901]
[1764509084104,0.03278273,3051.2,3050.1,0.659]
[1764509084307,0.4502,3051.3,3050.2,0.50168473]
[1764509084526,0.4502,3051.3,3050.2,0.4689]
[1764509084733,0.4502,3051.3,3050.4,0.72559411]
[1764509085653,0.48298273,3051.3,3050.1,1.80684509]
[1764509085810,0.48298273,3051.3,3050.3,0.72559411]
[1764509086238,0.48298273,3051.3,3050.2,7.02583861]
[1764509086239,4.15825584,3051.3,3050.2,0.72559411]
[1764509086446,0.4502,3051.2,3050.1,0.1901]
[1764509086643,0.4502,3051.2,3050.3,0.001]
[1764509086644,3.37750647,3051.1,3050.3,0.001]
[1764509086840,3.27750647,3051.1,3050.3,0.001]
[1764509087043,0.4502,3051.0,3050.3,0.001]
[1764509087214,0.5896,3050.4,3050.3,0.001]
[1764509087542,0.01,3052.4,3050.9,0.6482]
[1764509087740,0.4502,3052.2,3051.4,0.4581]
[1764509087962,0.1916,3051.9,3051.1,1.14728353]
[1764509088115,0.1916,3051.9,3051.1,0.4689]
[1764509088647,0.1916,3051.9,3051.2,3.27739905]
[1764509088850,0.4502,3052.2,3051.4,0.4581]
[1764509089053,0.4502,3052.3,3051.4,0.4581]
[1764509089342,0.4502,3052.3,3051.1,4.42473707]
[1764509089343,0.6418,3051.9,3051.1,3.27746319]
[1764509089512,0.6418,3051.9,3051.1,3.31023825]
[1764509089718,0.6418,3051.9,3051.1,3.77913825]
[1764509089921,0.6418,3051.9,3051.0,4.42488367]
[1764509090118,0.6418,3051.9,3051.1,0.72559411]
[1764509090335,0.6418,3051.9,3051.0,0.72559411]
[1764509090512,0.1916,3051.9,3051.1,0.4689]
[1764509090715,0.1916,3051.9,3051.4,0.4581]
[1764509090913,0.1916,3051.9,3051.1,3.74640478]
[1764509090914,0.6418,3051.9,3050.9,5.34069442]
[1764509091113,0.6418,3051.9,3050.9,0.1901]
[1764509091114,0.4502,3051.6,3050.9,0.1901]
[1764509091553,0.03278273,3051.8,3050.1,1.80628353]
[1764509091554,0.4525,3051.0,3050.1,1.80628353]
[1764509091759,0.1371,3050.9,3050.3,0.03378366]
[1764509092317,0.214,3051.1,3050.3,3.31213227]
[1764509092553,0.4953,3051.0,3050.3,0.001]
[1764509092765,0.4953,3051.0,3050.3,0.72659411]
[1764509092922,0.183,3050.9,3050.3,0.001]
[1764509093319,0.6783,3050.9,3050.3,0.001]
[1764509093946,0.6783,3050.9,3050.3,0.03378366]
[1764509094137,0.183,3050.9,3050.3,0.03378366]
[1764509094445,0.214,3051.1,3050.3,0.50068366]
[1764509094860,0.214,3051.2,3050.5,0.72559411]
[1764509095550,0.214,3051.2,3050.6,0.03278043]
[1764509096530,0.4953,3051.1,3050.3,0.72659411]
[1764509096730,0.4953,3051.1,3050.3,0.001]
[1764509096949,0.4953,3051.1,3050.3,0.03378366]
[1764509097151,0.90397665,3051.1,3050.3,0.03378366]
[1764509097538,0.4953,3051.1,3050.3,0.03378366]
[1764509097755,0.4953,3051.0,3050.3,0.03378366]
[1764509097951,0.5537,3050.4,3050.3,0.001]
[1764509098151,0.005,3051.5,3050.9,0.6883]
[1764509098561,0.005,3051.5,3050.6,1.61418353]
[1764509098735,0.005,3051.5,3050.7,0.1912]
[1764509098936,0.4953,3051.4,3050.7,0.72559411]
[1764509099138,0.005,3051.5,3050.7,0.72559411]
[1764509099329,0.219,3051.5,3050.7,1.87287764]
[1764509099547,0.4953,3051.4,3050.6,1.14728353]
[1764509099746,0.4953,3051.4,3050.5,4.19484276]
[1764509100062,0.4953,3051.4,3050.6,0.72559411]
[1764509100263,0.89770529,3051.4,3050.7,0.03277936]
[1764509100781,0.03278273,3051.3,3050.3,1.14828353]
[1764509100970,0.03278273,3051.3,3050.4,0.72559411]
[1764509100971,0.4953,3051.3,3050.4,0.72559411]
[1764509101467,0.005,3051.5,3051.2,1.64438353]
[1764509101764,0.005,3051.5,3051.4,0.4971]
[1764509102242,0.005,3051.5,3051.4,0.964]
[1764509102442,0.5053,3052.4,3051.7,0.405504]
[1764509102443,0.01,3052.4,3051.7,0.405504]
[1764509102744,0.01,3052.4,3052.3,0.6846]
[1764509103064,0.01,3052.4,3052.2,1.14522216]
[1764509103271,0.9683,3052.3,3051.6,0.1875]
[1764509103433,0.9683,3052.3,3051.6,0.91309411]
[1764509103638,0.9683,3052.3,3051.6,0.1875]
[1764509103946,0.9683,3052.3,3051.6,0.91309411]
[1764509104149,0.9683,3052.3,3051.6,0.1875]
[1764509104564,0.9683,3052.3,3051.7,0.72559411]
[1764509104772,0.9683,3052.3,3051.6,3.46439784]
[1764509104773,0.9683,3052.3,3051.6,0.1875]
[1764509105088,0.9683,3052.3,3051.6,3.46443594]
[1764509105387,0.002,3051.9,3051.6,0.91309411]
[1764509105690,0.002,3051.9,3051.6,0.1875]
[1764509105890,0.002,3051.9,3051.4,3.82559411]
[1764509105891,0.185,3051.9,3051.4,3.82559411]
[1764509106462,0.002,3051.9,3051.4,3.82559411]
[1764509106659,0.4953,3051.8,3051.4,3.82559411]
[1764509106904,0.473,3051.5,3051.4,3.82559411]
[1764509107268,0.9683,3051.5,3050.8,1.14522216]
[1764509107626,0.9683,3051.5,3050.7,1.14522216]
[1764509107907,0.0925,3050.8,3050.4,1.14522216]
[1764509108061,0.0925,3050.8,3050.3,0.001]
[1764509108390,0.4953,3050.7,3050.3,0.001]
[1764509108567,0.1,3050.5,3050.3,0.001]
[1764509108767,0.5953,3050.7,3050.3,0.001]
[1764509109082,0.4953,3050.6,3050.3,0.001]
[1764509109297,0.1,3050.4,3050.3,0.001]
[1764509109478,0.81513969,3050.4,3050.3,0.001]
[1764509109677,1.31043969,3050.4,3050.3,0.001]
[1764509109886,0.71513969,3050.4,3049.7,0.001]
[1764509110184,0.1,3049.4,3048.4,0.001]
[1764509110389,0.213,3049.3,3048.4,0.001]
[1764509110911,0.213,3049.3,3048.4,3.28140366]
[1764509111076,0.213,3049.3,3048.4,0.001]
[1764509111264,0.7083,3049.3,3048.4,0.001]
[1764509111665,0.4953,3049.2,3048.4,0.001]
[1764509112295,0.213,3049.1,3048.4,0.03380409]
[1764509112470,0.213,3049.1,3048.5,0.03280301]
[1764509112793,0.213,3049.2,3048.4,0.001]
[1764509113296,0.213,3049.2,3048.4,3.28140939]
[1764509113494,0.183,3049.8,3048.4,0.72659411]
[1764509113700,0.183,3049.8,3048.5,0.4669]
[1764509113882,0.183,3049.8,3048.6,0.03280194]
[1764509114286,0.183,3049.8,3048.7,0.4706]
[1764509114891,3.27815184,3050.5,3048.7,0.4706]
[1764509114892,0.1836,3050.1,3048.7,0.4706]
[1764509115075,0.213,3049.9,3048.7,0.4706]
[1764509115270,0.213,3049.9,3048.8,3.279979]
[1764509115477,0.213,3049.9,3048.9,0.72559411]
[1764509115670,0.1836,3050.4,3049.8,0.1876]
[1764509115874,0.3966,3050.4,3049.8,0.1876]
[1764509116307,0.1836,3050.4,3049.9,0.03278796]
[1764509116814,0.213,3050.3,3049.9,0.03278796]
[1764509117173,0.213,3050.3,3049.8,0.1876]
[1764509117378,0.213,3050.3,3048.9,0.72559411]
[1764509117379,0.4732,3049.9,3049.1,0.1876]
[1764509117579,0.4619,3050.2,3049.1,0.1876]
[1764509117995,0.213,3050.1,3049.1,0.1876]
[1764509118209,0.5619,3050.2,3049.1,0.1876]
[1764509118507,0.5619,3050.2,3048.6,0.4706]
[1764509118508,0.213,3050.0,3048.6,0.4706]
[1764509118709,0.213,3050.0,3048.6,3.7507739]
[1764509118710,0.1,3049.9,3048.6,3.7507739]
[1764509118899,0.4619,3049.9,3048.6,3.7507739]
[1764509119077,0.5619,3049.9,3048.6,3.7507739]
[1764509119477,3.27890353,3049.8,3048.6,3.7507739]
[1764509119698,4.01215374,3049.8,3048.7,0.72559411]
[1764509119894,0.4619,3049.7,3048.7,0.72559411]
[1764509120100,0.1,3049.6,3048.6,0.72559411]
[1764509120301,0.1,3049.6,3048.5,0.72559411]
[1764509120526,0.1,3049.6,3048.4,0.001]
[1764509120527,0.4619,3049.5,3048.4,0.72659411]
[1764509120801,0.4619,3049.5,3048.5,0.03280301]
[1764509121199,0.4619,3049.5,3048.4,4.00695509]
[1764509121427,3.74119385,3049.5,3048.4,4.00695509]
[1764509121760,0.38411939,3049.4,3048.4,4.00695509]
[1764509121918,0.213,3049.3,3048.4,4.00695509]
[1764509122617,0.213,3049.3,3048.4,7.28736448]
[1764509122818,0.213,3049.3,3048.5,0.03280301]
[1764509123124,0.5569,3049.2,3048.5,0.001]
[1764509123435,0.6657,3048.6,3048.5,0.001]
[1764509123735,0.8787,3048.6,3048.5,0.001]
[1764509124032,5.13167367,3048.6,3048.5,0.001]
[1764509124337,4.71579418,3048.6,3048.5,0.001]
[1764509125948,1.3356,3048.6,3048.5,0.001]
[1764509126108,4.61579418,3048.6,3048.5,0.001]
[1764509126431,1.3356,3048.6,3048.5,0.001]
[1764509126832,1.1226,3048.6,3048.5,0.001]